fUSD/lending_fUSD_20240428
["ID","MTS","AMOUNT","RATE_DAILY","PERIOD"]
[37952,1714331504032,-500.0,0.00012602,2]
[37953,1714331504043,-566.99482227,0.00012602,2]
[37954,1714331504052,-500.0,0.00012602,2]
[37955,1714331504061,-500.0,0.00012602,2]
[37956,1714331504071,-500.0,0.00012602,2]
[37957,1714331504080,-500.0,0.00012602,2]
[37958,1714331504092,-500.0,0.00012602,2]
[37959,1714331504101,-500.0,0.00012602,2]
[37960,1714331504110,-500.0,0.00012602,2]
[37961,1714331504120,-500.0,0.00012602,2]
[37962,1714331504130,-500.0,0.00012602,2]
[37963,1714331504139,-596.99,0.00012602,2]
[37964,1714331504148,-500.0,0.00012602,2]
[37965,1714331504157,-500.0,0.00012602,2]
[37966,1714331504167,-500.0,0.00012602,2]
[37967,1714331504176,-500.0,0.00012602,2]
[37968,1714331504186,-500.0,0.00012602,2]
[37969,1714331504195,-1224.58,0.00012602,2]
[37970,1714331504204,-500.0,0.00012602,2]
[37971,1714331504213,-574.66,0.00012602,2]
[37972,1714331504223,-1272.33,0.00012602,2]
[37973,1714331504233,-624.41,0.00012602,2]
[37974,1714331504243,-500.0,0.00012602,2]
[37975,1714331504254,-500.0,0.00012602,2]
[37976,1714331504263,-500.0,0.00012602,2]
[37977,1714331504273,-523.16,0.00012602,2]
[37978,1714331504282,-557.05,0.00012602,2]
[37979,1714331504291,-500.0,0.00012602,2]
[37980,1714331504301,-310.98,0.00012602,2]
[37981,1714331504310,-500.0,0.00012602,2]
[37982,1714331504320,-678.48,0.00012602,2]
[37983,1714331504330,-500.0,0.00012602,2]
[37984,1714331504339,-801.46,0.00012602,2]
[37985,1714331504348,-533.0,0.00012602,2]
[37986,1714331504363,-500.0,0.00012602,2]
[37987,1714331504372,-649.51,0.00012602,2]
[37988,1714331504382,-500.0,0.00012602,2]
[37989,1714331504391,-500.0,0.00012602,2]
[37990,1714331504402,-253.98165212,0.00012602,2]
[37991,1714331504411,-899.28,0.00012602,2]
[37992,1714331504420,-262.64007194,0.00012602,2]
[37993,1714331504430,-500.0,0.00012602,2]
[37994,1714331504440,-500.0,0.00012602,2]
[37995,1714331504450,-1142.31,0.00012602,2]
[37996,1714331504460,-500.0,0.00012602,2]
[37997,1714331504470,-500.0,0.00012602,2]
[37998,1714331504480,-581.74,0.00012602,2]
[37999,1714331504489,-606.2,0.00012602,2]
[38000,1714331504498,-618.36,0.00012602,2]
[38001,1714331504508,-500.0,0.00012602,2]
[38002,1714331504518,-294.93260846,0.00012602,2]
[38003,1714331504527,-427.86,0.00012602,2]
[38005,1714331504547,-629.85,0.00012602,2]
[38007,1714331504565,-505.91086212,0.00012602,2]
[38009,1714331504585,-507.09,0.00012602,2]
[38010,1714331504594,-891.97,0.00012602,2]
[38011,1714331504603,-500.0,0.00012602,2]
[38013,1714331504623,-527.72,0.00012602,2]
[38015,1714331504643,-788.51,0.00012602,2]
[38017,1714331504662,-500.0,0.00012602,2]
[38019,1714331504680,-500.0,0.00012602,2]
[38021,1714331504699,-513.17,0.00012602,2]
[38023,1714331504719,-565.5,0.00012602,2]
[38025,1714331504737,-1218.59,0.00012602,2]
[38027,1714331504755,-500.0,0.00012602,2]
[38029,1714331504773,-500.0,0.00012602,2]
[38031,1714331504792,-500.0,0.00012602,2]
[38032,1714331504802,-513.55,0.00012602,2]
[38033,1714331504811,-500.0,0.00012602,2]
[38034,1714331504821,-500.0,0.00012602,2]
[38035,1714331504830,-1577.52,0.00012602,2]
[38036,1714331504839,-500.0,0.00012602,2]
[38037,1714331504848,-500.0,0.00012602,2]
[38038,1714331504857,-728.71,0.00012602,2]
[38039,1714331504866,-500.0,0.00012602,2]
[38041,1714331504885,-615.66,0.00012602,2]
[38042,1714331504894,-474.89715995,0.00012602,2]
[38043,1714331504903,-619.6307094,0.00012602,2]
[38044,1714331504913,-500.0,0.00012602,2]
[38045,1714331504922,-575.03,0.00012602,2]
[38047,1714331504943,-542.89,0.00012602,2]
[38049,1714331504961,-1308.96,0.00012602,2]
[38051,1714331504979,-815.56,0.00012602,2]
[38053,1714331504998,-500.0,0.00012602,2]
[38055,1714331505016,-500.0,0.00012602,2]
[38057,1714331505034,-500.0,0.00012602,2]
[38059,1714331505053,-623.57,0.00012602,2]
[38061,1714331505072,-652.17,0.00012602,2]
[38063,1714331505091,-500.0,0.00012602,2]
[38065,1714331505111,-519.38,0.00012602,2]
[38066,1714331505121,-500.0,0.00012602,2]
[38067,1714331505130,-1176.19,0.00012602,2]
[38069,1714331505151,-500.0,0.00012602,2]
[38071,1714331505169,-500.0,0.00012602,2]
[38073,1714331505188,-500.0,0.00012602,2]
[38075,1714331505207,-500.0,0.00012602,2]
[38076,1714331505216,-640.22,0.00012602,2]
[38077,1714331505226,-500.0,0.00012602,2]
[38079,1714331505245,-710.87,0.00012602,2]
[38080,1714331505255,-500.0,0.00012602,2]
[38081,1714331505266,-500.0,0.00012602,2]
[38083,1714331505285,-500.0,0.00012602,2]
[38084,1714331505295,-810.35,0.00012602,2]
[38085,1714331505306,-725.07,0.00012602,2]
[38086,1714331505316,-625.09,0.00012602,2]
[38087,1714331505326,-500.0,0.00012602,2]
[38088,1714331505335,-500.0,0.00012602,2]
[38089,1714331505345,-544.86,0.00012602,2]
[38090,1714331505361,-500.0,0.00012602,2]
[38091,1714331505371,-726.49,0.00012602,2]
[38093,1714331505389,-704.75,0.00012602,2]
[38095,1714331505408,-500.0,0.00012602,2]
[38097,1714331505427,-500.0,0.00012602,2]
[38098,1714331505436,-534.78,0.00012602,2]
[38099,1714331505446,-500.0,0.00012602,2]
[38101,1714331505464,-500.0,0.00012602,2]
[38102,1714331505474,-527.69558232,0.00012602,2]
[38103,1714331505483,-775.6,0.00012602,2]
[38104,1714331505493,-682.92,0.00012602,2]
[38105,1714331505502,-890.23,0.00012602,2]
[38106,1714331505511,-1031.24,0.00012602,2]
[38107,1714331505520,-628.44,0.00012602,2]
[38109,1714331505539,-512.99,0.00012602,2]
[38111,1714331505557,-500.0,0.00012602,2]
[38113,1714331505576,-807.65,0.00012602,2]
[38115,1714331505595,-721.68,0.00012602,2]
[38117,1714331505614,-500.0,0.00012602,2]
[38119,1714331505632,-500.0,0.00012602,2]
[38121,1714331505651,-500.0,0.00012602,2]
[38123,1714331505669,-500.0,0.00012602,2]
[38125,1714331505688,-500.0,0.00012602,2]
[38127,1714331505708,-500.0,0.00012602,2]
[38129,1714331505727,-646.9,0.00012602,2]
[38131,1714331505746,-500.0,0.00012602,2]
[38133,1714331505764,-500.0,0.00012602,2]
[38135,1714331505782,-500.0,0.00012602,2]
[38137,1714331505800,-998.15,0.00012602,2]
[38139,1714331505818,-556.97,0.00012602,2]
[38141,1714331505836,-573.36,0.00012602,2]
[38143,1714331505854,-500.0,0.00012602,2]
[38145,1714331505872,-565.43,0.00012602,2]
[38147,1714331505890,-700.29,0.00012602,2]
[38149,1714331505909,-544.68,0.00012602,2]
[38151,1714331505928,-500.0,0.00012602,2]
[38153,1714331505947,-500.0,0.00012602,2]
[38155,1714331505965,-601.85,0.00012602,2]
[38157,1714331505984,-708.42,0.00012602,2]
[38159,1714331506012,-500.0,0.00012602,2]
[38161,1714331506037,-500.0,0.00012602,2]
[38163,1714331506062,-500.0,0.00012602,2]
[38165,1714331506088,-500.0,0.00012602,2]
[38167,1714331506114,-500.0,0.00012602,2]
[38169,1714331506139,-979.76,0.00012602,2]
[38171,1714331506168,-662.94,0.00012602,2]
[38173,1714331506192,-500.0,0.00012602,2]
[38175,1714331506220,-448.17798149,0.00012602,2]
[38177,1714331506246,-500.0,0.00012602,2]
[38179,1714331506269,-511.71,0.00012602,2]
[38181,1714331506294,-500.0,0.00012602,2]
[38183,1714331506319,-500.0,0.00012602,2]
[38185,1714331506346,-913.43,0.00012602,2]
[38187,1714331506377,-540.89,0.00012602,2]
[38189,1714331506402,-500.0,0.00012602,2]
[38191,1714331506423,-577.63,0.00012602,2]
[38193,1714331506447,-500.0,0.00012602,2]
[38195,1714331506471,-500.0,0.00012602,2]
[38197,1714331506494,-500.0,0.00012602,2]
[38199,1714331506519,-500.0,0.00012602,2]
[38201,1714331506542,-500.0,0.00012602,2]
[38203,1714331506565,-500.0,0.00012602,2]
[38205,1714331506587,-500.0,0.00012602,2]
[38207,1714331506609,-500.0,0.00012602,2]
[38209,1714331506635,-996.75,0.00012602,2]
[38211,1714331506657,-595.66,0.00012602,2]
[38213,1714331506680,-500.0,0.00012602,2]
[38215,1714331506706,-500.0,0.00012602,2]
[38217,1714331506730,-781.66,0.00012602,2]
[38219,1714331506753,-604.53,0.00012602,2]
[38221,1714331506775,-619.82,0.00012602,2]
[38222,1714331506786,-383.63,0.00012602,2]
[38223,1714331506797,-768.34,0.00012602,2]
[38225,1714331506820,-500.0,0.00012602,2]
[38227,1714331506841,-500.0,0.00012602,2]
[38229,1714331506862,-531.88,0.00012602,2]
[38231,1714331506883,-1772.83,0.00012602,2]
[38233,1714331506906,-532.51,0.00012602,2]
[38235,1714331506927,-598.01,0.00012602,2]
[38236,1714331506938,-500.0,0.00012602,2]
[38237,1714331506948,-500.0,0.00012602,2]
[38238,1714331506959,-500.0,0.00012602,2]
[38239,1714331506970,-625.85,0.00012602,2]
[38240,1714331506981,-500.0,0.00012602,2]
[38241,1714331506992,-805.9,0.00012602,2]
[38242,1714331507003,-500.0,0.00012602,2]
[38243,1714331507014,-500.0,0.00012602,2]
[38244,1714331507024,-1026.14,0.00012602,2]
[38245,1714331507035,-500.0,0.00012602,2]
[38247,1714331507058,-500.0,0.00012602,2]
[38248,1714331507069,-1489.77,0.00012602,2]
[38249,1714331507080,-500.0,0.00012602,2]
[38250,1714331507091,-500.0,0.00012602,2]
[38251,1714331507102,-500.0,0.00012602,2]
[38252,1714331507113,-1492.28,0.00012602,2]
[38253,1714331507125,-772.53,0.00012602,2]
[38254,1714331507135,-622.52,0.00012602,2]
[38255,1714331507147,-2487.11,0.00012602,2]
[38256,1714331507158,-1102.77,0.00012602,2]
[38257,1714331507168,-428.18956366,0.00012602,2]
[38258,1714331507179,-500.0,0.00012602,2]
[38259,1714331507190,-500.0,0.00012602,2]
[38260,1714331507201,-979.15,0.00012602,2]
[38261,1714331507212,-2683.52,0.00012602,2]
[38262,1714331507223,-500.0,0.00012602,2]
[38263,1714331507234,-500.0,0.00012602,2]
[38264,1714331507245,-500.0,0.00012602,2]
[38265,1714331507255,-513.23,0.00012602,2]
[38266,1714331507266,-757.63,0.00012602,2]
[38267,1714331507280,-500.0,0.00012602,2]
[38268,1714331507291,-500.0,0.00012602,2]
[38269,1714331507302,-1071.68,0.00012602,2]
[38270,1714331507312,-1511.1,0.00012602,2]
[38271,1714331507322,-1126.91,0.00012602,2]
[38272,1714331507334,-500.0,0.00012602,2]
[38273,1714331507346,-753.04,0.00012602,2]
[38275,1714331507373,-500.0,0.00012602,2]
[38277,1714331507394,-729.6,0.00012602,2]
[38279,1714331507417,-1727.07,0.00012602,2]
[38280,1714331507427,-1439.12,0.00012602,2]
[38281,1714331507439,-500.0,0.00012602,2]
[38283,1714331507462,-500.0,0.00012602,2]
[38285,1714331507485,-500.0,0.00012602,2]
[38287,1714331507507,-2375.71,0.00012602,2]
[38289,1714331507529,-768.05,0.00012602,2]
[38291,1714331507551,-500.0,0.00012602,2]
[38293,1714331507571,-1119.03,0.00012602,2]
[38295,1714331507593,-411.42171085,0.00012602,2]
[38297,1714331507614,-555.89,0.00012602,2]
[38298,1714331507625,-502.88,0.00012602,2]
[38299,1714331507636,-555.53,0.00012602,2]
[38301,1714331507657,-500.0,0.00012602,2]
[38302,1714331507668,-500.0,0.00012602,2]
[38303,1714331507678,-365.63680167,0.00012602,2]
[38304,1714331507689,-1950.72,0.00012602,2]
[38305,1714331507699,-500.0,0.00012602,2]
[38306,1714331507709,-2951.91,0.00012602,2]
[38307,1714331507720,-500.0,0.00012602,2]
[38309,1714331507741,-500.0,0.00012602,2]
[38311,1714331507762,-500.0,0.00012602,2]
[38313,1714331507783,-500.0,0.00012602,2]
[38315,1714331507806,-500.0,0.00012602,2]
[38317,1714331507827,-500.0,0.00012602,2]
[38319,1714331507848,-8529.27,0.00012602,2]
[38321,1714331507869,-500.0,0.00012602,2]
[38323,1714331507891,-479.0548457,0.00012602,2]
[38325,1714331507913,-500.0,0.00012602,2]
[38327,1714331507934,-500.0,0.00012602,2]
[38329,1714331507955,-5159.18,0.00012602,2]
[38331,1714331507976,-500.0,0.00012602,2]
[38333,1714331507998,-500.0,0.00012602,2]
[38335,1714331508022,-500.0,0.00012602,2]
[38337,1714331508045,-500.0,0.00012602,2]
[38339,1714331508068,-500.0,0.00012602,2]
[38341,1714331508089,-1145.96,0.00012602,2]
[38343,1714331508111,-674.92,0.00012602,2]
[38345,1714331508132,-4341.09,0.00012602,2]
[38347,1714331508153,-2859.93,0.00012602,2]
[38349,1714331508176,-632.02,0.00012602,2]
[38351,1714331508199,-1251.88,0.00012602,2]
[38353,1714331508222,-1301.64,0.00012602,2]
[38355,1714331508244,-1459.2,0.00012602,2]
[38357,1714331508266,-900.56,0.00012602,2]
[38359,1714331508287,-500.0,0.00012602,2]
[38361,1714331508310,-500.0,0.00012602,2]
[38363,1714331508331,-760.17,0.00012602,2]
[38365,1714331508352,-500.0,0.00012602,2]
[38367,1714331508379,-812.36,0.00012602,2]
[38369,1714331508401,-586.66,0.00012602,2]
[38371,1714331508421,-1319.84,0.00012602,2]
[38373,1714331508444,-500.0,0.00012602,2]
[38375,1714331508466,-625.97,0.00012602,2]
[38377,1714331508487,-5810.04,0.00012602,2]
[38379,1714331508509,-500.0,0.00012602,2]
[38381,1714331508530,-11529.36,0.00012602,2]
[38383,1714331508552,-534.65,0.00012602,2]
[38385,1714331508573,-1308.4,0.00012602,2]
[38387,1714331508596,-813.94,0.00012602,2]
[38388,1714331508607,-694.2,0.00012602,2]
[38389,1714331508618,-903.91,0.00012602,2]
[38390,1714331508629,-1550.17,0.00012602,2]
[38391,1714331508640,-500.0,0.00012602,2]
[38392,1714331508651,-1112.97,0.00012602,2]
[38393,1714331508661,-613.08,0.00012602,2]
[38394,1714331508671,-565.24,0.00012602,2]
[38395,1714331508683,-500.0,0.00012602,2]
[38396,1714331508693,-1316.95,0.00012602,2]
[38397,1714331508703,-1711.83,0.00012602,2]
[38398,1714331508715,-747.92,0.00012602,2]
[38399,1714331508727,-500.0,0.00012602,2]
[38400,1714331508740,-1211.25,0.00012602,2]
[38401,1714331508750,-600.34,0.00012602,2]
[38402,1714331508763,-1062.05,0.00012602,2]
[38403,1714331508773,-995.48,0.00012602,2]
[38404,1714331508784,-500.0,0.00012602,2]
[38405,1714331508794,-500.0,0.00012602,2]
[38406,1714331508805,-829.71,0.00012602,2]
[38407,1714331508815,-938.89,0.00012602,2]
[38408,1714331508828,-500.0,0.00012602,2]
[38409,1714331508839,-579.0,0.00012602,2]
[38410,1714331508850,-500.0,0.00012602,2]
[38411,1714331508862,-500.0,0.00012602,2]
[38412,1714331508874,-531.05,0.00012602,2]
[38413,1714331508888,-3800.95,0.00012602,2]
[38414,1714331508900,-509.12,0.00012602,2]
[38415,1714331508912,-1489.82,0.00012602,2]
[38416,1714331508923,-2169.37,0.00012602,2]
[38417,1714331508934,-500.0,0.00012602,2]
[38418,1714331508945,-2292.13,0.00012602,2]
[38419,1714331508955,-500.0,0.00012602,2]
[38420,1714331508966,-894.45,0.00012602,2]
[38421,1714331508977,-500.0,0.00012602,2]
[38422,1714331508988,-500.0,0.00012602,2]
[38423,1714331508999,-11916.14,0.00012602,2]
[38424,1714331509010,-774.47,0.00012602,2]
[38425,1714331509021,-706.5,0.00012602,2]
[38426,1714331509031,-4212.02,0.00012602,2]
[38427,1714331509042,-500.0,0.00012602,2]
[38428,1714331509052,-973.0,0.00012602,2]
[38429,1714331509063,-1126.83,0.00012602,2]
[38430,1714331509072,-500.0,0.00012602,2]
[38431,1714331509082,-917.33,0.00012602,2]
[38432,1714331509091,-500.0,0.00012602,2]
[38433,1714331509100,-500.0,0.00012602,2]
[38434,1714331509109,-672.42,0.00012602,2]
[38435,1714331509118,-500.0,0.00012602,2]
[38436,1714331509128,-5235.42,0.00012602,2]
[38437,1714331509137,-1242.59,0.00012602,2]
[38438,1714331509145,-1138.49,0.00012602,2]
[38439,1714331509154,-500.0,0.00012602,2]
[38440,1714331509163,-500.0,0.00012602,2]
[38441,1714331509172,-1401.31,0.00012602,2]
[38442,1714331509181,-860.55,0.00012602,2]
[38443,1714331509189,-500.0,0.00012602,2]
[38445,1714331509207,-500.0,0.00012602,2]
[38446,1714331509216,-500.0,0.00012602,2]
[38447,1714331509225,-500.0,0.00012602,2]
[38449,1714331509243,-508.46159828,0.00012602,2]
[38451,1714331509262,-500.0,0.00012602,2]
[38453,1714331509281,-977.7,0.00012602,2]
[38455,1714331509299,-6674.97,0.00012602,2]
[38456,1714331509309,-16083.09,0.00012602,2]
[38457,1714331509318,-524.08,0.00012602,2]
[38458,1714331509327,-723.16,0.00012602,2]
[38459,1714331509337,-500.0,0.00012602,2]
[38461,1714331509358,-1549.43,0.00012602,2]
[38463,1714331509377,-500.0,0.00012602,2]
[38465,1714331509395,-500.0,0.00012602,2]
[38467,1714331509415,-1266.3,0.00012602,2]
[38469,1714331509435,-500.0,0.00012602,2]
[38471,1714331510143,-1185.86,0.00012602,2]
[38473,1714331510224,-500.0,0.00012602,2]
[38475,1714331510272,-8626.56,0.00012602,2]
[38477,1714331510291,-500.0,0.00012602,2]
[38479,1714331510311,-1057.63,0.00012602,2]
[38481,1714331510331,-766.16,0.00012602,2]
[38483,1714331510349,-500.0,0.00012602,2]
[38485,1714331510371,-1600.41,0.00012602,2]
[38487,1714331510392,-3105.73,0.00012602,2]
[38489,1714331510411,-500.0,0.00012602,2]
[38491,1714331510431,-500.0,0.00012602,2]
[38493,1714331510454,-500.0,0.00012602,2]
[38495,1714331510473,-500.0,0.00012602,2]
[38497,1714331510493,-258.5762233,0.00012602,2]
[38499,1714331510512,-566.88,0.00012602,2]
[38501,1714331510532,-2494.32,0.00012602,2]
[38503,1714331510551,-3862.59,0.00012602,2]
[38505,1714331510570,-736.62,0.00012602,2]
[38507,1714331510588,-500.0,0.00012602,2]
[38509,1714331510607,-2923.81,0.00012602,2]
[38511,1714331510628,-500.0,0.00012602,2]
[38513,1714331510647,-500.0,0.00012602,2]
[38515,1714331510667,-2897.29,0.00012602,2]
[38516,1714331510676,-500.0,0.00012602,2]
[38517,1714331510686,-500.0,0.00012602,2]
[38519,1714331510705,-500.0,0.00012602,2]
[38521,1714331510724,-640.18,0.00012602,2]
[38523,1714331510743,-20011.43,0.00012602,2]
[38525,1714331510764,-1538.14,0.00012602,2]
[38527,1714331510783,-500.0,0.00012602,2]
[38529,1714331510806,-8592.95,0.00012602,2]
[38531,1714331510826,-529.13,0.00012602,2]
[38533,1714331510845,-500.0,0.00012602,2]
[38535,1714331510867,-500.0,0.00012602,2]
[38537,1714331510889,-500.0,0.00012602,2]
[38539,1714331510909,-1086.25,0.00012602,2]
[38541,1714331510929,-500.0,0.00012602,2]
[38543,1714331510948,-500.0,0.00012602,2]
[38545,1714331510967,-782.23667968,0.00012603,2]
[38547,1714331510987,-801.51,0.00012638,2]
[38549,1714331511005,-260.0,0.0001265,2]
[38551,1714331511024,-782.23667968,0.00012712,2]
[38553,1714331511043,-782.23667968,0.00012822,2]
[38555,1714331511066,-655.9,0.0001285,3]
[38557,1714331511086,-14480.41,0.00012876,2]
[38559,1714331511104,-625.22,0.00012876,2]
[38560,1714331511114,-500.0,0.00012876,2]
[38561,1714331511124,-500.0,0.00012876,2]
[38562,1714331511134,-605.3,0.00012876,2]
[38563,1714331511144,-500.0,0.00012876,2]
[38564,1714331511153,-500.0,0.00012876,2]
[38565,1714331511163,-500.0,0.00012876,2]
[38566,1714331511172,-607.32,0.00012876,2]
[38567,1714331511181,-500.0,0.00012876,2]
[38569,1714331511200,-500.0,0.00012876,2]
[38571,1714331511218,-529.75,0.00012876,2]
[38573,1714331511237,-500.0,0.00012876,2]
[38575,1714331511256,-744.02,0.00012876,2]
[38577,1714331511278,-500.0,0.00012876,2]
[38579,1714331511300,-500.0,0.00012876,2]
[38581,1714331511319,-634.38,0.00012876,2]
[38583,1714331511341,-503.88,0.00012876,2]
[38585,1714331511363,-708.28,0.00012876,2]
[38587,1714331511384,-588.27,0.00012876,2]
[38589,1714331511403,-500.0,0.00012876,2]
[38591,1714331511424,-500.0,0.00012876,2]
[38592,1714331511435,-500.0,0.00012876,2]
[38593,1714331511445,-500.0,0.00012876,2]
[38594,1714331511455,-500.0,0.00012876,2]
[38595,1714331511464,-584.81,0.00012876,2]
[38597,1714331511483,-500.0,0.00012876,2]
[38599,1714331511503,-638.09,0.00012876,2]
[38601,1714331511522,-500.0,0.00012876,2]
[38603,1714331511542,-547.32710844,0.00012876,2]
[38605,1714331511562,-500.0,0.00012876,2]
[38607,1714331511581,-500.0,0.00012876,2]
[38608,1714331511592,-586.4433199,0.00012876,2]
[38609,1714331511601,-500.0,0.00012876,2]
[38611,1714331511620,-500.0,0.00012876,2]
[38613,1714331511639,-500.0,0.00012876,2]
[38614,1714331511649,-500.0,0.00012876,2]
[38615,1714331511658,-195.96,0.00012876,2]
[38616,1714331511667,-681.2,0.00012876,2]
[38617,1714331511677,-652.17,0.00012876,2]
[38618,1714331511686,-500.0,0.00012876,2]
[38619,1714331511704,-666.44,0.00012876,2]
[38620,1714331511716,-712.36,0.00012876,2]
[38621,1714331511726,-500.0,0.00012876,2]
[38622,1714331511736,-500.0,0.00012876,2]
[38623,1714331511746,-566.45,0.00012876,2]
[38624,1714331511756,-500.0,0.00012876,2]
[38625,1714331511766,-500.0,0.00012876,2]
[38626,1714331511776,-500.0,0.00012876,2]
[38627,1714331511786,-514.37,0.00012876,2]
[38628,1714331511796,-500.0,0.00012876,2]
[38629,1714331511808,-500.0,0.00012876,2]
[38630,1714331511818,-583.37,0.00012876,2]
[38631,1714331511828,-500.0,0.00012876,2]
[38632,1714331511838,-536.60048084,0.00012876,2]
[38633,1714331511848,-770.94,0.00012876,2]
[38634,1714331511858,-500.0,0.00012876,2]
[38635,1714331511868,-500.0,0.00012876,2]
[38636,1714331511879,-500.0,0.00012876,2]
[38637,1714331511888,-500.0,0.00012876,2]
[38638,1714331511899,-500.0,0.00012876,2]
[38639,1714331511908,-500.0,0.00012876,2]
[38640,1714331511919,-500.0,0.00012876,2]
[38641,1714331511929,-500.0,0.00012876,2]
[38642,1714331511939,-500.0,0.00012876,2]
[38643,1714331511949,-500.0,0.00012876,2]
[38644,1714331511959,-500.0,0.00012876,2]
[38645,1714331511969,-596.99,0.00012876,2]
[38646,1714331511979,-500.0,0.00012876,2]
[38647,1714331511989,-500.0,0.00012876,2]
[38648,1714331511999,-500.0,0.00012876,2]
[38649,1714331512010,-500.0,0.00012876,2]
[38650,1714331512020,-500.0,0.00012876,2]
[38651,1714331512030,-1224.58,0.00012876,2]
[38653,1714331512050,-574.66,0.00012876,2]
[38655,1714331512071,-624.41,0.00012876,2]
[38657,1714331512091,-500.0,0.00012876,2]
[38658,1714331512102,-523.16,0.00012876,2]
[38659,1714331512111,-557.05,0.00012876,2]
[38661,1714331512131,-500.0,0.00012876,2]
[38663,1714331512150,-678.48,0.00012876,2]
[38665,1714331512170,-801.46,0.00012876,2]
[38667,1714331512190,-500.0,0.00012876,2]
[38669,1714331512210,-500.0,0.00012876,2]
[38671,1714331512229,-899.28,0.00012876,2]
[38673,1714331512249,-500.0,0.00012876,2]
[38674,1714331512259,-1142.31,0.00012876,2]
[38675,1714331512268,-500.0,0.00012876,2]
[38677,1714331512287,-606.2,0.00012876,2]
[38678,1714331512297,-581.74,0.00012876,2]
[38679,1714331512308,-618.36,0.00012876,2]
[38681,1714331512327,-783.25,0.00012876,2]
[38683,1714331512347,-500.0,0.00012876,2]
[38684,1714331512358,-816.26,0.00012876,2]
[38685,1714331512369,-507.09,0.00012876,2]
[38686,1714331512379,-891.97,0.00012876,2]
[38687,1714331512389,-668.56,0.00012876,2]
[38688,1714331512399,-1106.8,0.00012876,2]